{"text_format":"1","workbook":"xlsx","n_sheets":12,"sheets":["CAMPEONES","CAMPEONES ","EQUIPOS","ELITE ABIERTA","ELITE JUVENIL","ELITE CABALLOS","NOVICIOS ABIERTA","NOVICIOS JUVENIL","NOVICIOS MENORES","NOVICIOS CABALLOS","INFANTIL","BINOMIOS"],"not_rendered":{"charts":0,"images":0,"macros":1,"external_links":0,"defined_names":82,"comments":0,"pivot_tables":0},"unopened":[],"bounds":{"document_bytes":16777216,"sheet_cells":100000,"rows_first":2000,"rows_last":500,"rows_between":2000,"halvings":0,"cell_chars":16384,"cell_head_chars":4096},"cells_cut":0,"cells_raw":0,"read":"whole","date_system":"1900"}

{"sheet":"CAMPEONES","index":0,"n_rows":79,"n_cols":11,"rows_kept":79,"cut":false,"hidden":true,"merged":[[68,0,68,2],[13,0,13,3],[74,0,74,2],[37,0,37,3],[43,0,43,3],[49,0,49,2],[55,0,55,2],[61,0,61,2],[31,0,31,3],[1,0,1,10],[2,5,2,10],[7,0,7,3],[19,0,19,3],[25,0,25,3]]}
[]
["CAMPEONATO DE EQUIPOS                                        "]
[null,null,"EQUIPO","CAPITAN","PUNTAJE","               JINETES"]
[1,"CAMPEÓN NACIONAL","CEPSA AMAROK","FELIPE PORTILLA",1628.8969999999999,"RIBADENEIRA SOFIA","RIBADENEIRA ARTURO","CANDO MARIO","URIBE  CARLOS JOSE","PORTILLA FELIPE","QUIROZ ORLANDO"]
[2,"VICECAMPEÓN NACIONAL","EKOS NEGOCIOS.COM 1","MAURICIO MURILLO",1604.299,"RICARDO DUEÑAS","MORILLO MAURICIO","RUIZ ILIANA","SERGIO MORILLO","BRAUER MARIA FERNANDA"]
[3,null,"EQUINOCCIAL 1","BERNARDO DARQUEA",1349.7159999999999,"JUAN JOSE RECALDE","RAFAELLA DARQUEA","BERNARDO DARQUEA","KARINA NEUMANN","DELGADO JUAN","ANDRES DARQUEA"]
[]
["CAMPEONATO NACIONAL DE JINETES ABIERTA (CHASQUI II)           "]
[null,null,"EQUIPO","PUNTAJE"]
[1,"CAMPEÓN NACIONAL","MORILLO MAURICIO",779.37159999999994]
[2,"VICECAMPEÓN NACIONAL","RECALDE JUAN JOSE",762.553]
[3,null,"WEEMAELS NATHALIE",590.99799999999993]
[]
["CAMPEONATO NACIONAL DE JINETES MASTER (CHASQUI II)           "]
[null,null,"EQUIPO","PUNTAJE"]
[1,"CAMPEÓN NACIONAL","ALMEIDA AYALA HECTOR",159.52000000000001]
[2,"VICECAMPEÓN NACIONAL"]
[3]
[]
["CAMPEONATO NACIONAL DE JINETES JUVENIL (CHASQUI II)           "]
[null,null,"EQUIPO","PUNTAJE"]
[1,"CAMPEÓN NACIONAL","MORENO NICOLAS",496.91999999999996]
[2,"VICECAMPEÓN NACIONAL","RIBADENEIRA SOFIA",488.24]
[3,null,"MONROY MARIA FERNANDA",318.38600000000002]
[]
["CAMPEONATO DE BINOMIOS"]
[null,"JINETE","CABALLO","PUNTAJE"]
[1,"MORILLO MAURICIO ","MISTERIO",779.37159999999994]
[2,"RECALDE JUAN JOSE ","BOMBON",762.553]
[3,"RIBADENEIRA SOFIA","AR FAISAN",486.24]
[]
["MEJOR CONDICIÓN FISICA"]
[null,"CABALLO","PROPIETARIO","PUNTAJE"]
[1,"MISTERIO","MAURICIO MORILLO",529.73599999999999]
[2,"BOMBON","JUAN JOSE RECALDE",525.27249999999992]
[3,"AR FAISAN","RIBADENEIRA SOFIA",415.65999999999997]
[]
["CAMPEONATO DE CABALLOS ABIERTA (PESO MÍNIMO 75 KG)"]
[null,"CABALLO","PROPIETARIO","PUNTAJE"]
[1,"MISTERIO","MORILLO MAURICIO ",779.37159999999994]
[2,"BOMBON","RECALDE JUAN JOSE ",762.553]
[3,"CG ALLASKI","WEEMAELS NATHALIE",590.99799999999993]
[]
["CAMPEONATO DE CABALLOS JUVENIL- MASTER (SIN PESO MÍNIMO)"]
[null,"CABALLO","PROPIETARIO","PUNTAJE"]
[1,"DAMASCO","MORENO NICOLAS",413.14]
[2,"AR FAISAN","RIBADENEIRA SOFIA",321.96000000000004]
[3,"GITANILLO","MONROY BAROJA MARIA",295.548]
[]
["CAMPEONATO JINETES ABIERTA CHASQUI I"]
[null,"JINETE","PUNTAJE"]
[1,"ILIANA RUIZ",361.67500000000001]
[2,"ORLANDO QUIROZ",332.0412]
[3,"RICARDO DUEÑAS",323.76409999999998]
[]
["CAMPEONATO JINETES MASTER CHASQUI I"]
[null,"JINETE","PUNTAJE"]
[1,"GUSTAVO HIDALGO",366.048]
[2,"EDUARDO MONROY",124.13800000000001]
[3,"GALO RECALDE",82.752600000000001]
[]
["CAMPEONATO JINETES JUVENIL CHASQUI I"]
[null,"JINETE","PUNTAJE"]
[1,"PEDRO JOSE GUARDERAS",271.98]
[2,"PEDRO JOSE BACA",124.13800000000001]
[3,"WRAY THOMAS",119.96]
[]
[]
["CAMPEONATO PRUEBA PROMOCIONAL JINETES"]
[null,"JINETE","PUNTAJE"]
[1,"BELEN GUARDERAS",92.713999999999999]
[2,"ANDRES AYALA",90.88]
[3,"MOLESTINA NICOLAS",88.867999999999995]
[]
["CAMPEONATO INFANTIL JINETES"]
[null,"JINETE","PUNTAJE"]
[1,"JARAMILLO BENITO JOSE",175.9786]
[2,"CHIRIBOGA ALFREDO",175.375]
[3,"JARAMILLO MANUELA",162.74429999999998]

{"sheet":"CAMPEONES ","index":1,"n_rows":104,"n_cols":12,"rows_kept":104,"cut":false,"hidden":true,"merged":[[1,1,1,4],[3,1,3,4],[9,1,9,4],[3,6,3,16],[4,11,4,16],[9,6,9,9],[1,6,1,16],[73,6,73,10],[97,6,97,10],[17,6,17,9],[41,6,41,9],[81,6,81,9],[89,6,89,9],[17,1,17,4],[33,6,33,9],[49,6,49,9],[65,6,65,9],[57,6,57,10],[25,1,25,4],[25,6,25,10]]}
[]
[null,"CAMPEONATO ECUATORIANO DE ENDURANCE",null,null,null,null,"                                                    CAMPEONATO NACIONAL DE ENDURANCE ECUADOR"]
[]
[null,"CATEGORÍA ELITE ABIERTA  CHASQUI 2",null,null,null,null,"CAMPEONATO DE EQUIPOS                                        "]
[null,null,null,"JINETE","CABALLO",null,null,null,"EQUIPO","CAPITAN","PUNTAJE","               JINETES"]
[null,1,"CAMPEÓN NACIONAL",null,null,null,1,"CAMPEÓN NACIONAL"]
[null,2,"VICECAMPEÓN NACIONAL",null,null,null,2,"VICECAMPEÓN NACIONAL"]
[null,3,null,null,null,null,3]
[]
[null,"CATEGORÍA ELITE JUVENIL  CHASQUI 2",null,null,null,null,"CATEGORÍA ELITE ABIERTA        "]
[null,null,null,"JINETE","CABALLO",null,null,null,"JINETE","PUNTAJE"]
[null,1,"CAMPEÓN NACIONAL",null,null,null,1,"CAMPEÓN NACIONAL"]
[null,2,"VICECAMPEÓN NACIONAL",null,null,null,2,"VICECAMPEÓN NACIONAL"]
[null,3,null,null,null,null,3]
[null,null,null,null,null,null,4]
[null,null,null,null,null,null,5]
[]
[null,"CATEGORÍA ELITE ABIERTA  CHASQUI 1",null,null,null,null,"CATEGORÍA ELITE JUVENIL       "]
[null,null,null,"JINETE","CABALLO",null,null,null,"JINETE","PUNTAJE"]
[null,1,"CAMPEÓN NACIONAL",null,null,null,1,"CAMPEÓN NACIONAL"]
[null,2,"VICECAMPEÓN NACIONAL",null,null,null,2,"VICECAMPEÓN NACIONAL"]
[null,3,null,null,null,null,3]
[null,null,null,null,null,null,4]
[null,null,null,null,null,null,5]
[]
[null,"CATEGORÍA ELITE JUVENIL  CHASQUI 1",null,null,null,null,"CATEGORÍA ELITE CABALLOS     "]
[null,null,null,"JINETE","CABALLO",null,null,null,"JINETE","JINETE/DUEÑO","PUNTAJE"]
[null,1,"CAMPEÓN NACIONAL",null,null,null,1,"CAMPEÓN NACIONAL"]
[null,2,"VICECAMPEÓN NACIONAL",null,null,null,2,"VICECAMPEÓN NACIONAL"]
[null,3,null,null,null,null,3]
[null,null,null,null,null,null,4]
[null,null,null,null,null,null,5]
[]
[null,null,null,null,null,null,"CATEGORÍA NOVICIOS ABIERTA        "]
[null,null,null,null,null,null,null,null,"JINETE","PUNTAJE"]
[null,null,null,null,null,null,1,"CAMPEÓN NACIONAL"]
[null,null,null,null,null,null,2,"VICECAMPEÓN NACIONAL"]
[null,null,null,null,null,null,3]
[null,null,null,null,null,null,4]
[null,null,null,null,null,null,5]
[]
[null,null,null,null,null,null,"CATEGORÍA NOVICIOS JUVENIL"]
[null,null,null,null,null,null,null,null,"JINETE","PUNTAJE"]
[null,null,null,null,null,null,1,"CAMPEÓN NACIONAL"]
[null,null,null,null,null,null,2,"VICECAMPEÓN NACIONAL"]
[null,null,null,null,null,null,3]
[null,null,null,null,null,null,4]
[null,null,null,null,null,null,5]
[]
[null,null,null,null,null,null,"CATEGORÍA NOVICIOS MENORES     "]
[null,null,null,null,null,null,null,null,"JINETE","PUNTAJE"]
[null,null,null,null,null,null,1,"CAMPEÓN NACIONAL"]
[null,null,null,null,null,null,2,"VICECAMPEÓN NACIONAL"]
[null,null,null,null,null,null,3]
[null,null,null,null,null,null,4]
[null,null,null,null,null,null,5]
[]
[null,null,null,null,null,null,"CATEGORÍA NOVICIOS CABALLOS      "]
[null,null,null,null,null,null,null,null,"JINETE","JINETE/DUEÑO","PUNTAJE"]
[null,null,null,null,null,null,1,"CAMPEÓN NACIONAL"]
[null,null,null,null,null,null,2,"VICECAMPEÓN NACIONAL"]
[null,null,null,null,null,null,3]
[null,null,null,null,null,null,4]
[null,null,null,null,null,null,5]
[]
[null,null,null,null,null,null,"CATEGORÍA INFANTIL"]
[null,null,null,null,null,null,null,null,"JINETE","PUNTAJE"]
[null,null,null,null,null,null,1,"CAMPEÓN NACIONAL"]
[null,null,null,null,null,null,2,"VICECAMPEÓN NACIONAL"]
[null,null,null,null,null,null,3]
[null,null,null,null,null,null,4]
[null,null,null,null,null,null,5]
[]
[null,null,null,null,null,null,"CATEGORÍA BINOMIOS   "]
[null,null,null,null,null,null,null,null,"JINETE","CABALLO","PUNTAJE"]
[null,null,null,null,null,null,1,"CAMPEÓN NACIONAL"]
[null,null,null,null,null,null,2,"VICECAMPEÓN NACIONAL"]
[null,null,null,null,null,null,3]
[null,null,null,null,null,null,4]
[null,null,null,null,null,null,5]
[]
[null,null,null,null,null,null,"MEJOR CONDICIÓN ABIERTA    "]
[null,null,null,null,null,null,null,null,"CABALLO","PUNTAJE"]
[null,null,null,null,null,null,1,"CAMPEÓN NACIONAL"]
[null,null,null,null,null,null,2,"VICECAMPEÓN NACIONAL"]
[null,null,null,null,null,null,3]
[null,null,null,null,null,null,4]
[null,null,null,null,null,null,5]
[]
[null,null,null,null,null,null,"MEJOR CONDICIÓN JUVENIL"]
[null,null,null,null,null,null,null,null,"JINETE","PUNTAJE"]
[null,null,null,null,null,null,1,"CAMPEÓN NACIONAL"]
[null,null,null,null,null,null,2,"VICECAMPEÓN NACIONAL"]
[null,null,null,null,null,null,3]
[null,null,null,null,null,null,4]
[null,null,null,null,null,null,5]
[]
[null,null,null,null,null,null,"SUPER CABALLO"]
[null,null,null,null,null,null,null,null,"JINETE","JINETE/DUEÑO","PUNTAJE"]
[null,null,null,null,null,null,1,"CAMPEÓN NACIONAL"]
[null,null,null,null,null,null,2,"VICECAMPEÓN NACIONAL"]
[null,null,null,null,null,null,3]
[null,null,null,null,null,null,4]
[null,null,null,null,null,null,5]

{"sheet":"EQUIPOS","index":2,"n_rows":23,"n_cols":41,"rows_kept":23,"cut":false,"hidden":false,"merged":[[1,1,1,20],[6,4,6,9],[4,1,4,9],[4,10,4,20],[5,10,5,20],[2,1,2,20]]}
[]
[null,"                                                      PUNTAJE  ACUMULADO"]
[null,"                                                                   EQUIPOS"]
[]
[null,"EQUIPOS",null,null,null,null,null,null,null,null,"PUNTAJES"]
[null,null,null,null,null,null,null,null,null,null,2012]
[null,null,"EQUIPO","CAPITAN","               JINETES",null,null,null,null,null,"I CHONE","II CHONE","III CHONE","IV CHONE","V CHONE","VI CHONE","VII CHONE","VIII CHONE","IX CHONE","X CHONE","ACUMULADO"]
[null,1,"EQUINOCCIAL 1","DARQUE BERNARDO","DARQUE BERNARDO","DARQUEA RICARDO","NEUMANN KARINA","GUARDERAS SEBASTIAN","RECALDE JUAN JOSE","SERRANO FELIPE",246.3877,null,330.24499999999995,513.92399999999998,null,404.01000000000005,null,null,655.63,null,{"$f":"SUM(K8:T8)","v":2150.1967}]
[null,2,"AL GALOPE","ALMEIDA AYALA HECTOR"," NATHALIE WEEMAELS","ALMEIDA AYALA HECTOR","TORRES WLADIMIRO","ANDRADE JOSE DANIEL","BERNARDA GONZÁLEZ","MARÍA CLAUDIA LOYOLA",324.03440000000001,null,444.93499999999995,548.21669999999995,null,337.47899999999998,467.4,null,null,null,2122.0650999999998]
[null,3,"HOSTERIA SAN JOSE - CRIADERO UMBRIA","LETORT MENA JOSE","LETORT MENA JOSE","LETORT JOSE IGNACIO","JARAMILLO MANUELA","JARAMILLO BENITO","SERRANO ARMANDO JOSE","JARAMILLO BENITO",396.6105,null,444.93499999999995,228.44863999999995,null,289.44000000000005,null,null,346.99,null,1706.4241399999999,null,null,null,null,null,null,null,null,null,null,null,null,null,null,null,null,null,null,{"$f":"+$U$8-U9","v":28.131600000000162},{"$f":"VLOOKUP(B10,#REF!,3,FALSE)","v":{"$error":"#REF!"}}]
[null,4,"AL GALOPE 1","ALMEIDA AYALA HECTOR","KOPPEL OSWALDO","ACOSTA MARIA GABRIELA","ALMEIDA HECTOR DANIEL","ALEXANDER GÓMEZ","MARÍA FERNANDA MONROY","GONZALEZ SEBASTIAN",233.89179999999999,null,289.72749999999996,null,null,null,null,null,null,null,523.61929999999995]
[null,5,"Ekosnegocios.com","MAURICIO MORILLO WELLENIUS","MAURICIO MORILLO WELLENIUS","RICARDO DUEÑAS ","MANUEL JOSE CORNEJO","ANDRES BARAHONA",null,null,null,null,null,null,null,null,null,null,461.52059999999994,null,461.52059999999994]
[null,6,"CEPSA - AMAROK DE CACHAFAZ","RIBADENEIRA ARTURO","RIBADENEIRA ARTURO","FRITZ PAULA","FRITZ SEBASTIAN",null,null,null,null,null,null,null,null,null,null,null,null,null,0]
[null,7,"EQUINOCCIAL 2","DARQUE BERNARDO","MAZAPANTA KEVIN","MIÑO JOSE RICARDO","SANTIAGO GUARDERAS",null,null,null,null,null,null,null,null,null,null,null,null,null,0]
[null,8,"CEPSA - AMAROK GUALILAGUA","CARLOS URIBE S","MARIO CANOD","ESTEFANÍA CHANGO","JULIANA FRITZ",null,null,null,null,null,null,null,null,null,null,null,null,null,0]
[null,9,"Hato Verde","MORABOWEN CESAR","ALVEAR JUAN CARLOS","SIMON NICOLAS","FUEREZ LUIS","MORABOWEN CESAR",null,null,null,null,null,null,null,null,null,null,null,null,0]
[null,10,null,null,null,null,null,null,null,null,null,null,null,null,null,null,null,null,null,null,{"$f":"SUM(K17:T17)","v":0}]
[null,11,null,null,null,null,null,null,null,null,null,null,null,null,null,null,null,null,null,null,0]
[null,12,null,null,null,null,null,null,null,null,null,null,null,null,null,null,null,null,null,null,0]
[null,13,null,null,null,null,null,null,null,null,null,null,null,null,null,null,null,null,null,null,0]
[null,14,null,null,null,null,null,null,null,null,null,null,null,null,null,null,null,null,null,null,0]
[null,15,null,null,null,null,null,null,null,null,null,null,null,null,null,null,null,null,null,null,0]
[null,16,null,null,null,null,null,null,null,null,null,null,null,null,null,null,null,null,null,null,0]

{"sheet":"ELITE ABIERTA","index":3,"n_rows":50,"n_cols":15,"rows_kept":50,"cut":false,"hidden":false,"merged":[[5,4,5,14],[4,1,4,3],[4,4,4,14],[1,1,1,14],[2,1,2,14]]}
[]
[null,"PUNTAJE  ACUMULADO"]
[null,"CATEGORÍA ABIERTA DE ELITE"]
[]
[null,"ELITE ABIERTA",null,null,"PUNTAJES"]
[null,null,null,null,2014]
[null,null,"CODIGO","JINETE","I CHONE","II CHONE","III CHONE","IV CHONE","V CHONE","VI CHONE","VII CHONE","VIII CHONE","IX CHONE","X CHONE","ACUMULADO"]
[null,1,"A059","ALMEIDA AYALA HECTOR",null,null,134.32,null,null,152.76,null,164,207.25549999999998,null,{"$f":"SUM(E8:N8)","v":658.33549999999991}]
[null,2,"A056","MORILLO MAURICIO",85.59,null,167.89999999999998,null,null,136.68,null,null,231.63849999999996,null,621.80849999999987]
[null,3,"A052","DARQUEA BERNARDO",null,null,98.699999999999989,245.10799999999998,null,null,null,null,243.82999999999998,null,587.63799999999992]
[null,4,"A081","KOPPEL OSWALDO",null,null,null,168.01,null,null,164,null,219.447,null,551.45699999999999]
[null,5,"A060","RECALDE JUAN JOSE",81.31,null,88.83,null,null,114.57000000000001,null,null,180.166,null,464.87599999999998]
[null,6,"A058","RIBADENEIRA ARTURO",null,null,null,232.85259999999997,null,144.72000000000003,null,null,null,null,377.57259999999997]
[null,7,"A055","WEEMAELS NATHALIE",null,null,151.10999999999999,220.59719999999999,null,null,null,null,null,null,371.70719999999994]
[null,8,"A026","LETORT MENA JOSE",167.7,null,159.50499999999997,null,null,null,null,null,null,null,327.20499999999993]
[null,9,"A051","GUARDERAS SEBASTIAN",null,null,142.71499999999997,null,null,128.64000000000001,null,null,null,null,271.35500000000002]
[null,10,"A177","RAMIREZ FABRICIO",null,null,null,null,null,108.54,null,null,121.16999999999999,null,229.70999999999998]
[null,11,"A172","BURBANO SERRANO JAIME ROLANDO",94.8,null,null,null,66.36,null,null,null,null,null,161.16]
[null,12,"A047","NEUMANN KARINA",null,null,null,null,null,160.80000000000001,null,null,null,null,160.80000000000001]
[null,13,"A092","VINTIMILLA PABLO",null,null,null,159.6095,null,null,null,null,null,null,159.6095]
[null,14,"A057","DAVILA JUAN DIEGO",null,null,125.92499999999998,null,null,null,null,null,null,null,125.92499999999998]
[null,15,"A033","SERRANO ARMANDO JOSE",null,null,null,null,null,120.60000000000001,null,null,null,null,120.60000000000001]
[null,16,"A046","NOBOA MAURICIO",null,null,null,119.89400000000001,null,null,null,null,null,null,119.89400000000001]
[null,17,"A067","CANDO MARIO",null,null,117.52999999999997,null,null,null,null,null,null,null,117.52999999999997]
[null,18,"A035","PORTILLA FELIPE",null,null,null,null,null,null,null,null,115.11149999999998,null,115.11149999999998]
[null,19,"A080","GOMEZ JUAN MARTIN",null,null,93.764999999999986,null,null,null,null,null,null,null,93.764999999999986]
[null,20,"A181","ALLAICO CHIMBORAZO JOSE EMILIO",null,null,null,null,null,null,null,84,null,null,84]
[null,21,null,null,null,null,null,null,null,null,null,null,null,null,{"$f":"SUM(E28:N28)","v":0}]
[null,22,null,null,null,null,null,null,null,null,null,null,null,null,0]
[null,23,null,null,null,null,null,null,null,null,null,null,null,null,0]
[]
[null,null,null,null,null,null,null,null,null,null,null,{"$f":"IF(J32>=60,\"CLASIFICADO A 60 Km LIBRE y 80 Km NOVICIO\",IF(J32>=40,\"CLASIFICADO A 40 Km LIBRE y 60 Km NOVICIO\",\"\"))","v":""}]
[]
[]
[]
[]
[]
[]
[]
[]
[]
[]
[]
[]
[]
[]
[]
[]
[]
[null,null,null,null,null,null,null,null,null,null,null,{"$f":"IF(J50>=60,\"CLASIFICADO A 60 Km LIBRE y 80 Km NOVICIO\",IF(J50>=40,\"CLASIFICADO A 40 Km LIBRE y 60 Km NOVICIO\",\"\"))","v":""}]

{"sheet":"ELITE JUVENIL","index":4,"n_rows":39,"n_cols":15,"rows_kept":39,"cut":false,"hidden":false,"merged":[[5,4,5,14],[4,1,4,3],[4,4,4,14],[1,1,1,14],[2,1,2,14]]}
[]
[null,"PUNTAJE  ACUMULADO"]
[null,"CATEGORÍA JUVENIL DE ELITE"]
[]
[null,"ELITE JUVENIL",null,null,"PUNTAJES"]
[null,null,null,null,2014]
[null,null,"CODIGO","JINETE","I CHONE","II CHONE","III CHONE","IV CHONE","V CHONE","VI CHONE","VII CHONE","VIII CHONE","IX CHONE","X CHONE","ACUMULADO"]
[null,1,"J034","ANDRADE JOSE DANIEL",167.7,171.6,null,null,null,160.80000000000001,164,null,null,null,{"$f":"SUM(E8:N8)","v":664.09999999999991}]
[null,2,"J 063","GONZALEZ CARVALLO BERNARDA",null,163.01999999999998,null,168.01,null,null,155.79999999999998,84,null,null,570.82999999999993]
[null,3,"J013","MORILLO SERGIO",81.31,null,null,245.10799999999998,null,null,null,null,243.82999999999998,null,570.24800000000005]
[null,4,"J055","LOYOLA CLAUDIA MARIA",null,null,159.50499999999997,159.6095,null,null,147.6,null,null,null,466.71449999999993]
[null,5,"J047","LETORT JOSE IGNACIO",null,null,167.89999999999998,null,null,null,null,null,162.14940000000001,null,330.04939999999999]
[null,6,"J087","MALO TORAL DAVID",null,null,null,142.80849999999998,null,null,null,null,180.166,null,322.97449999999998]
[null,7,"J008","GOMEZ ALEXANDER",null,null,151.10999999999999,134.40799999999999,null,null,null,null,null,null,285.51799999999997]
[null,8,"J020","SERRANO FELIPE",null,null,null,151.209,null,null,null,null,231.63849999999996,null,382.84749999999997]
[null,9,"J021","CORNEJO MANUEL",null,null,null,null,null,null,null,null,171.15769999999998,null,171.15769999999998]
[null,10,null,null,null,null,null,null,null,null,null,null,null,null,0]
[null,11,"J024","DARQUEA RAFAELLA",85.59,null,null,null,null,null,null,null,null,null,85.59]
[null,12,"J019","DARQUEA RICARDO",77.03,null,null,null,null,null,null,null,null,null,77.03]
[null,13,"J005","JIJON MARIA PAULA",72.75,null,null,null,null,null,null,null,null,null,72.75]
[null,14,null,null,null,null,null,null,null,null,null,null,null,null,{"$f":"SUM(E21:N21)","v":0}]
[null,15,null,null,null,null,null,null,null,null,null,null,null,null,0]
[null,16,null,null,null,null,null,null,null,null,null,null,null,null,0]
[null,17,null,null,null,null,null,null,null,null,null,null,null,null,0]
[null,18,null,null,null,null,null,null,null,null,null,null,null,null,0]
[null,19,null,null,null,null,null,null,null,null,null,null,null,null,0]
[]
[null,null,null,null,null,null,null,null,null,null,null,{"$f":"IF(J28>=60,\"CLASIFICADO A 60 Km LIBRE y 80 Km NOVICIO\",IF(J28>=40,\"CLASIFICADO A 40 Km LIBRE y 60 Km NOVICIO\",\"\"))","v":""}]
[]
[]
[]
[]
[]
[]
[]
[]
[]
[]
[null,null,null,null,null,null,null,null,null,null,null,{"$f":"IF(J39>=60,\"CLASIFICADO A 60 Km LIBRE y 80 Km NOVICIO\",IF(J39>=40,\"CLASIFICADO A 40 Km LIBRE y 60 Km NOVICIO\",\"\"))","v":""}]

{"sheet":"ELITE CABALLOS","index":5,"n_rows":80,"n_cols":16,"rows_kept":80,"cut":false,"hidden":false,"merged":[[5,5,5,15],[4,5,4,15],[1,1,1,15],[2,1,2,15],[4,1,4,4]]}
[]
[null,"PUNTAJE  ACUMULADO"]
[null,"CATEGORÍA CABALLOS DE ELITE"]
[]
[null,"ELITE CABALLOS",null,null,null,"PUNTAJES"]
[null,null,null,null,null,2014]
[null,null,"CODIGO","CABALLO","DUEÑO/JINETE","I CHONE","II CHONE","III CHONE","IV CHONE","V CHONE","VI CHONE","VII CHONE","VIII CHONE","IX CHONE","X CHONE","ACUMULADO"]
[null,1,"C136","FARHA CONEJA","DARQUEA BERNARDO",85.59,null,98.699999999999989,245.10799999999998,null,160.80000000000001,null,null,243.82999999999998,null,{"$f":"SUM(I8:O8)","v":649.73800000000006}]
[null,2,"C072","QUITA PENAS","MORILLO SERGIO",81.31,null,null,245.10799999999998,null,null,null,null,243.82999999999998,null,{"$f":"SUM(F9:O9)","v":570.24800000000005}]
[null,3,"C232","ASRAEL","BERNARDO GONZÁLEZ",null,163.01999999999998,null,168.01,null,null,155.79999999999998,null,null,null,486.82999999999993]
[null,4,"C197","PATACON","MARÍA CLAUDIA LOYOLA",null,null,159.50499999999997,159.6095,null,null,147.6,null,null,null,466.71449999999993]
[null,5,"C041","ZUCO","SERRANO FELIPE",null,null,null,151.209,null,null,null,null,231.63849999999996,null,382.84749999999997]
[null,6,"C093","CG ALLASKI","NATHALIE WEEMAELS",null,null,151.10999999999999,220.59719999999999,null,null,null,null,null,null,371.70719999999994]
[null,7,"C114","KAFIR HA","HÉCTOR ALMEIDA",null,null,151.10999999999999,null,null,null,null,null,219.447,null,370.55700000000002]
[null,8,"C188","FRODO","ARTURO RIBADENEIRA",null,null,125.92499999999998,232.85259999999997,null,null,null,null,null,null,358.77759999999995]
[null,9,"C194","MD KABUL","ANDRADE JOSE DANIEL",null,null,null,null,null,null,164,null,180.166,null,344.166]
[null,10,"C097","CENTAURO","HÉCTOR ALMEIDA",null,null,134.32,null,null,null,null,null,207.25549999999998,null,341.57549999999998]
[null,11,"C154","SHAKIRA","JOSE LETORT MENA",null,null,167.89999999999998,null,null,null,null,null,162.14940000000001,null,330.04939999999999]
[null,12,"C134","JUPITER","HÉCTOR ALMEIDA",null,null,null,null,null,null,164,164,null,null,328]
[null,13,"C046","AMARETO","JOSE LETORT MENA",167.7,null,159.50499999999997,null,null,null,null,null,null,null,327.20499999999993]
[null,14,"C115","AVENTURERO","HÉCTOR ALMEIDA",null,null,null,168.01,null,152.76,null,null,null,null,320.77]
[null,15,"C094","MISTERIO","MAURICIO MORILLO",85.59,null,null,null,null,null,null,null,231.63849999999996,null,317.22849999999994]
[null,16,"C106","ZEUS LL","MAURICIO MORILLO",null,null,167.89999999999998,null,null,136.68,null,null,null,null,304.58]
[null,17,"C086","GHAFIL","ROBERTO MARCEL",null,null,142.71499999999997,null,null,128.64000000000001,null,null,null,null,271.35500000000002]
[null,18,"C350","BZ RHEEMAH","FELIPE ANDRADE",null,171.6,null,null,null,null,null,null,null,null,171.6]
[null,19,"C189","HAAKIR","CORNEJO MANUEL",null,null,null,null,null,null,null,null,171.15769999999998,null,171.15769999999998]
[null,20,"C193","SHIVAGO","FELIPE ANDRADE",167.7,null,null,null,null,null,null,null,null,null,167.7]
[null,21,"C297","SAILER EG"," JAIME ROLANDO BURBANO SERRANO",null,94.8,null,66.36,null,null,null,null,null,null,161.16]
[null,22,"C175","CLAW","ANDRADE JOSE DANIEL",null,null,null,null,null,160.80000000000001,null,null,null,null,160.80000000000001]
[null,23,"C074","WISKY","VINTIMILLA PABLO",null,null,null,159.6095,null,null,null,null,null,null,159.6095]
[null,24,"C096","AR FAISAN","RIBADENEIRA ARTURO",null,null,null,null,null,144.72000000000003,null,null,null,null,144.72000000000003]
[null,25,"C208","ARAGON","MALO TORAL DAVID",null,null,null,142.80849999999998,null,null,null,null,null,null,142.80849999999998]
[null,26,"C148","FUERTE","GOMEZ ALEXANDER",null,null,null,134.40799999999999,null,null,null,null,null,null,134.40799999999999]
[null,27,"C332","MD SOHAT","SERRANO ARMANDO JOSE",null,null,null,null,null,120.60000000000001,null,null,null,null,120.60000000000001]
[null,28,"C334","CAPORAL","NOBOA MAURICIO",null,null,null,119.89400000000001,null,null,null,null,null,null,119.89400000000001]
[null,29,"C126","BRUMA","MARIO CANDO",null,null,117.52999999999997,null,null,null,null,null,null,null,117.52999999999997]
[null,30,"C200","MULATA","RECALDE JUAN JOSE",null,null,null,null,null,114.57000000000001,null,null,null,null,114.57000000000001]
[null,31,"C257","CHAGRA","RAMIREZ FABRICIO",null,null,null,null,null,108.54,null,null,null,null,108.54]
[null,32,"C135","CARAGUAY","JUAN MARTIN GOMEZ",null,null,93.764999999999986,null,null,null,null,null,null,null,93.764999999999986]
[null,33,"C200","MULATA","JUAN JOSÉ RECALDE",null,null,88.83,null,null,null,null,null,null,null,88.83]
[null,34,"C004","TEQUILA","ALLAICO CHIMBORAZO JOSE EMILIO",null,null,null,null,null,null,null,84,null,null,84]
[null,35,"C333","KADIN","GONZALEZ BERNARDA",null,null,null,null,null,null,null,84,null,null,84]
[null,36,"C029","GR NURIA","JUAN JOSÉ RECALDE",81.31,null,null,null,null,null,null,null,null,null,81.31]
[null,37,"C136","MILONGA","RICARDO DARQUEA",77.03,null,null,null,null,null,null,null,null,null,77.03]
[null,38,"C072","FERMIN","MARÍA PAULA JIJON",72.75,null,null,null,null,null,null,null,null,null,72.75]
[null,39,null,null,null,null,null,null,null,null,null,null,null,null,null,{"$f":"SUM(F46:O46)","v":0}]
[null,40,null,null,null,null,null,null,null,null,null,null,null,null,null,0]
[null,41,null,null,null,null,null,null,null,null,null,null,null,null,null,0]
[null,42,null,null,null,null,null,null,null,null,null,null,null,null,null,0]
[null,43,null,null,null,null,null,null,null,null,null,null,null,null,null,0]
[null,44,null,null,null,null,null,null,null,null,null,null,null,null,null,0]
[null,45,null,null,null,null,null,null,null,null,null,null,null,null,null,0]
[null,46,null,null,null,null,null,null,null,null,null,null,null,null,null,0]
[null,47,null,null,null,null,null,null,null,null,null,null,null,null,null,0]
[null,48,null,null,null,null,null,null,null,null,null,null,null,null,null,0]
[null,49,null,null,null,null,null,null,null,null,null,null,null,null,null,0]
[null,50,null,null,null,null,null,null,null,null,null,null,null,null,null,0]
[null,51,null,null,null,null,null,null,null,null,null,null,null,null,null,0]
[null,52,null,null,null,null,null,null,null,null,null,null,null,null,null,0]
[null,53,null,null,null,null,null,null,null,null,null,null,null,null,null,0]
[]
[null,null,null,null,null,null,null,null,null,null,null,null,{"$f":"IF(K62>=60,\"CLASIFICADO A 60 Km LIBRE y 80 Km NOVICIO\",IF(K62>=40,\"CLASIFICADO A 40 Km LIBRE y 60 Km NOVICIO\",\"\"))","v":""}]
[]
[]
[]
[]
[]
[]
[]
[]
[]
[]
[]
[]
[]
[]
[]
[]
[]
[null,null,null,null,null,null,null,null,null,null,null,null,{"$f":"IF(K80>=60,\"CLASIFICADO A 60 Km LIBRE y 80 Km NOVICIO\",IF(K80>=40,\"CLASIFICADO A 40 Km LIBRE y 60 Km NOVICIO\",\"\"))","v":""}]

{"sheet":"NOVICIOS ABIERTA","index":6,"n_rows":94,"n_cols":15,"rows_kept":94,"cut":false,"hidden":false,"merged":[[5,4,5,14],[4,1,4,3],[4,4,4,14],[1,1,1,14],[2,1,2,14]]}
[]
[null,"PUNTAJE  ACUMULADO"]
[null,"CATEGORÍA ABIERTA NOVICIOS"]
[]
[null,"NOVICIOS ABIERTA",null,null,"PUNTAJES"]
[null,null,null,null,2014]
[null,null,"CODIGO","JINETE","I CHONE","II CHONE","III CHONE","IV CHONE","V CHONE","VI CHONE","VII CHONE","VIII CHONE","IX CHONE","X CHONE","ACUMULADO"]
[null,1,"A045","MORABOWEN CESAR",56.92,null,53.92799999999999,null,null,112.56,114.8,103.32,119.81038999999997,null,{"$f":"SUM(J8:N8)","v":450.49038999999999}]
[null,2,"A081","KOPPEL VINTIMILLA OSWALDO JAVIER",105.65,120.11999999999999,111.65349999999997,null,null,106.93199999999999,null,null,null,null,{"$f":"SUM(E9:N9)","v":444.35549999999989}]
[null,3,"A164","VELEZ MENA MARIA CONSUELO",null,88.48,null,null,null,null,103.32,109.05999999999999,null,null,300.86]
[null,4,"A014","MALO DIANA",null,null,null,null,null,null,58.8,84,126.11619999999999,null,268.9162]
[null,5,"A033","SERRANO ARMANDO JOSE",50.93,null,117.52999999999997,50.927239999999991,null,null,null,null,null,null,219.38723999999996]
[null,6,"A093","GONZALEZ RENATO",null,null,null,null,108.10799999999999,null,109.05999999999999,null,null,null,217.16799999999998]
[null,7,"A130","MALO JAIME",null,null,null,null,null,null,97.58,114.8,null,null,212.38]
[null,8,"A142","GONZALEZ SEBASTIAN",99.78,53.088000000000001,null,53.922959999999996,null,null,null,null,null,null,206.79095999999998]
[null,9,"A 165","BURBANO VILLAVICENCIO JAIME SEBASTIAN",null,84.055999999999997,null,111.72664999999999,null,null,null,null,null,null,195.78264999999999]
[null,10,"A010","HIDALGO GUSTAVO",53.92,null,56.923999999999992,56.918679999999995,null,null,null,null,null,null,167.76267999999999]
[null,11,"A169","SANCHEZ VEGA SANTIAGO",null,null,null,null,59.724000000000004,null,52.92,52.92,null,null,165.56400000000002]
[null,12,"A046","NOBOA MAURICIO",null,63.041999999999994,44.939999999999991,null,null,null,null,null,49.91574,null,157.89774]
[null,13,"A123","SAMPER ALVARO",null,null,null,59.914399999999993,null,47.838000000000001,null,null,46.979520000000001,null,154.73192]
[null,14,"A165","MORALES ANDRES",35.950000000000003,null,null,35.948639999999997,null,56.28,null,null,null,null,128.17864]
[null,15,"A137","ESPINOZA ALVARADO JUAN SEBASTIAN",null,null,null,null,120.11999999999999,null,null,null,null,null,120.11999999999999]
[null,16,"A060","RECALDE JUAN JOSE",null,null,null,117.60699999999999,null,null,null,null,null,null,117.60699999999999]
[null,17,"A059","ALMEIDA AYALA HECTOR",117.39,null,null,null,null,null,null,null,null,null,117.39]
[null,18,"A158","WILLIAMS JEMMA",null,66.36,50.931999999999988,null,null,null,null,null,null,null,117.29199999999999]
[null,19,"A092","VINTIMILLA SERRANO PABLO XAVIER",null,59.724000000000004,null,null,null,null,null,55.859999999999992,null,null,115.584]
[null,20,"A 057","DAVILA JUAN DIEGO",null,114.11399999999999,null,null,null,null,null,null,null,null,114.11399999999999]
[null,21,"A078","CHANGO ESTEFANIA",111.52,null,null,null,null,null,null,null,null,null,111.52]
[null,22,"A135","DONOSO LOYOLA SEBASTIAN FERNANDO",null,null,null,null,null,null,null,49.97999999999999,58.724399999999996,null,108.70439999999999]
[null,23,"A018","MANCHENO GALO PATRICIO",null,null,null,null,null,50.652000000000008,null,null,52.851959999999991,null,103.50396000000001]
[null,24,"A021","ALVEAR JUAN CARLOS",null,56.405999999999999,null,null,null,null,null,null,44.043299999999995,null,100.44929999999999]
[null,25,"A064","CASTILLO DIEGO",null,null,null,44.9358,null,53.465999999999994,null,null,null,null,98.401799999999994]
[null,26,"A048","BARAHONA VACA ANDRES",41.94,null,47.936,null,null,null,null,null,null,null,89.876000000000005]
[null,27,"A145","MALO GELIBERT ANDREA",null,null,null,null,88.48,null,null,null,null,null,88.48]
[null,28,"A 162","TORRES JOSUE",null,79.632000000000005,null,null,null,null,null,null,null,null,79.632000000000005]
[null,29,"A181","ALLAICO CHIMBORAZO JOSE EMILIO",null,null,null,null,66.36,null,null,null,null,null,66.36]
[null,30,"A176","ESCOBAR LUIS",null,null,59.919999999999995,null,null,null,null,null,null,null,59.919999999999995]
[null,31,"A025","JARAMILLO BENITO",59.91,null,null,null,null,null,null,null,null,null,59.91]
[null,32,"A190","LOZADA ARMANDO",null,null,null,null,null,null,null,58.8,null,null,58.8]
[null,33,"A181","ALLAICO CHIMBORAZO JOSE EMILIO",null,null,null,null,null,null,55.859999999999992,null,null,null,55.859999999999992]
[null,34,"A026","LETORT MENA JOSE",null,null,null,null,null,null,null,null,55.78817999999999,null,55.78817999999999]
[null,35,"A173","REIVAN GORDILLO JHONZON VINICIO",null,49.769999999999996,null,null,null,null,null,null,null,null,49.769999999999996]
[null,36,"A058","RIBADENEIRA ARTURO",47.93,null,null,null,null,null,null,null,null,null,47.93]
[null,37,"A047","NEUMANN KARINA",44.94,null,null,null,null,null,null,null,null,null,44.94]
[null,38,"A178","ANDRADE JUAN CARLOS",null,null,41.943999999999996,null,null,null,null,null,null,null,41.943999999999996]
[null,39,"A185","BURBANO SERRANO JAIME ROLANDO",null,null,null,41.940079999999995,null,null,null,null,null,null,41.940079999999995]
[null,40,"A177","RAMIREZ FABRICIO",null,null,38.948,null,null,null,null,null,null,null,38.948]
[null,41,"A035","PORTILLA FELIPE",null,null,null,38.944359999999996,null,null,null,null,null,null,38.944359999999996]
[null,42,"A019","TORRES WLADIMIRO",38.94,null,null,null,null,null,null,null,null,null,38.94]
[null,43,"A024","RECALDE GALO",32.950000000000003,null,null,null,null,null,null,null,null,null,32.950000000000003]
[null,44,null,null,null,null,null,null,null,null,null,null,null,null,{"$f":"SUM(E51:N51)","v":0}]
[null,45,null,null,null,null,null,null,null,null,null,null,null,null,0]
[null,46,null,null,null,null,null,null,null,null,null,null,null,null,0]
[null,47,null,null,null,null,null,null,null,null,null,null,null,null,0]
[null,48,null,null,null,null,null,null,null,null,null,null,null,null,0]
[null,49,null,null,null,null,null,null,null,null,null,null,null,null,0]
[null,50,null,null,null,null,null,null,null,null,null,null,null,null,0]
[null,51,null,null,null,null,null,null,null,null,null,null,null,null,0]
[null,52,null,null,null,null,null,null,null,null,null,null,null,null,0]
[null,53,null,null,null,null,null,null,null,null,null,null,null,null,0]
[null,54,null,null,null,null,null,null,null,null,null,null,null,null,0]
[null,55,null,null,null,null,null,null,null,null,null,null,null,null,0]
[null,56,null,null,null,null,null,null,null,null,null,null,null,null,0]
[null,57,null,null,null,null,null,null,null,null,null,null,null,null,0]
[null,58,null,null,null,null,null,null,null,null,null,null,null,null,0]
[null,59,null,null,null,null,null,null,null,null,null,null,null,null,0]
[null,60,null,null,null,null,null,null,null,null,null,null,null,null,0]
[null,61,null,null,null,null,null,null,null,null,null,null,null,null,0]
[null,62,null,null,null,null,null,null,null,null,null,null,null,null,0]
[null,63,null,null,null,null,null,null,null,null,null,null,null,null,0]
[null,64,null,null,null,null,null,null,null,null,null,null,null,null,0]
[null,65,null,null,null,null,null,null,null,null,null,null,null,null,0]
[null,66,null,null,null,null,null,null,null,null,null,null,null,null,{"$f":"SUM(E73:N73)","v":0}]
[null,67,null,null,null,null,null,null,null,null,null,null,null,null,0]
[]
[null,null,null,null,null,null,null,null,null,null,null,{"$f":"IF(J76>=60,\"CLASIFICADO A 60 Km LIBRE y 80 Km NOVICIO\",IF(J76>=40,\"CLASIFICADO A 40 Km LIBRE y 60 Km NOVICIO\",\"\"))","v":""}]
[]
[]
[]
[]
[]
[]
[]
[]
[]
[]
[]
[]
[]
[]
[]
[]
[]
[null,null,null,null,null,null,null,null,null,null,null,{"$f":"IF(J94>=60,\"CLASIFICADO A 60 Km LIBRE y 80 Km NOVICIO\",IF(J94>=40,\"CLASIFICADO A 40 Km LIBRE y 60 Km NOVICIO\",\"\"))","v":""}]

{"sheet":"NOVICIOS JUVENIL","index":7,"n_rows":83,"n_cols":15,"rows_kept":83,"cut":false,"hidden":false,"merged":[[5,4,5,14],[4,1,4,3],[4,4,4,14],[1,1,1,14],[2,1,2,14]]}
[]
[null,"PUNTAJE  ACUMULADO"]
[null,"CATEGORÍA JUVENIL NOVICIOS"]
[]
[null,"NOVICIOS JUVENIL",null,null,"PUNTAJES"]
[null,null,null,null,2014]
[null,null,"CODIGO","JINETE","I CHONE","II CHONE","III CHONE","IV CHONE","V CHONE","VI CHONE","VII CHONE","VIII CHONE","IX CHONE","X CHONE","ACUMULADO"]
[null,1,"J079","JARAMILLO MANUELA",111.52,null,117.52999999999997,117.60699999999999,null,112.56,null,null,126.11619999999999,null,{"$f":"SUM(G8:N8)","v":473.81319999999994}]
[null,2,"J 054","VINTIMILLA CORDERO PABLO JOSE",null,66.36,null,105.8463,120.11999999999999,null,null,null,null,null,{"$f":"SUM(E9:N9)","v":292.3263}]
[null,3,"J057","GUARDERAS JOSE GABRIEL",null,null,59.919999999999995,56.918679999999995,null,null,null,null,113.50458,null,{"$f":"SUM(E10:N10)","v":230.34325999999999}]
[null,4,"J081","MEDINA CARVAJAL JORGE",53.92,null,null,null,59.724000000000004,53.465999999999994,52.92,47.04,null,null,{"$f":"SUM(E11:K11)","v":220.03000000000003}]
[null,5,"J050","FRITZ PAULA",99.78,null,105.77699999999999,null,null,null,null,null,null,null,{"$f":"SUM(E12:N12)","v":205.55699999999999}]
[null,6,"J091","BERREZUETA DELGADO PABLO SANTI",null,null,null,null,null,null,58.8,55.859999999999992,58.724399999999996,null,173.3844]
[null,7,"J 079","MALO TORAL DAVID",null,120.11999999999999,null,null,null,null,49.97999999999999,null,null,null,170.09999999999997]
[null,8,"J088","RODITTI CARVAJAL CRISTORO",null,null,null,null,53.09,56.28,null,58.8,null,null,{"$f":"SUM(E15:N15)","v":168.17000000000002}]
[null,9,"J090","LOYOLA VINTIMILLA TEODORO ANDRES",null,null,null,null,59.724000000000004,null,44.099999999999994,41.16,null,null,144.98399999999998]
[null,10,"J089","DARQUEA DAVALOS ANA MARIA",null,null,null,null,66.36,null,55.859999999999992,null,null,null,122.22]
[null,11,"J019","DARQUEA RICARDO",null,null,null,null,null,null,null,null,119.81038999999997,null,119.81038999999997]
[null,12,"J059","DUBACH CAROLINA",null,null,null,59.914399999999993,null,null,null,null,55.78817999999999,null,115.70257999999998]
[null,13,"J 056","MATUTE RIOFRIO PEDRO FERMIN",null,114.11399999999999,null,null,null,null,null,null,null,null,114.11399999999999]
[null,14,"J007","ESPINOZA TOMAS",null,null,null,111.72664999999999,null,null,null,null,null,null,111.72664999999999]
[null,15,"J014","GUARDERAS PEDRO JOSE",null,null,111.65349999999997,null,null,null,null,null,null,null,111.65349999999997]
[null,16,"J021","CORNEJO MANUEL",105.65,null,null,null,null,null,null,null,null,null,105.65]
[null,17,"J088","SIMON NICOLAS",null,null,null,53.922959999999996,null,null,null,null,49.91574,null,103.83869999999999]
[null,18,"J049","FRITZ SEBASTIAN",null,null,99.90049999999998,null,null,null,null,null,null,null,99.90049999999998]
[null,19,"J047","LETORT JOSE IGNACIO",93.911999999999992,null,null,null,null,null,null,null,null,null,93.911999999999992]
[null,20,"J043","MORENO DANIEL",93.91,null,null,null,null,null,null,null,null,null,93.91]
[null,21,"J093","LOPEZ EMILIA",null,null,null,null,null,null,47.04,44.099999999999994,null,null,91.139999999999986]
[null,22,"A 164","VELEZ MENA MARIA CONSUELO",null,88.48,null,null,null,null,null,null,null,null,88.48]
[null,23,"J020","SERRANO FELIPE",88.04,null,null,null,null,null,null,null,null,null,88.04]
[null,24,"A 165","BURBANO VILLAVICENCIO JAIME SEBASTIAN",null,84.055999999999997,null,null,null,null,null,null,null,null,84.055999999999997]
[null,25,"J065","ESPINOSA BARBARA",82.17,null,null,null,null,null,null,null,null,null,82.17]
[null,26,"A 162","TORRES JOSUE",null,79.632000000000005,null,null,null,null,null,null,null,null,79.632000000000005]
[null,27,"J016","MIÑO JOSE RICARDO",59.91,null,null,null,null,null,null,null,null,null,59.91]
[null,28,"J051","POLIT JULIA",56.92,null,null,null,null,null,null,null,null,null,56.92]
[null,29,"J094","LOPEZ MIRANDA",null,null,null,null,null,null,null,52.92,null,null,52.92]
[null,30,"J094","JIJON ANA FRANCISCA",null,null,null,null,null,null,null,null,52.851959999999991,null,52.851959999999991]
[null,31,"J082","ANDRADE ANDRADE EMILIA",null,null,null,null,null,null,null,49.97999999999999,null,null,49.97999999999999]
[null,32,null,null,null,null,null,null,null,null,null,null,null,null,{"$f":"SUM(E39:N39)","v":0}]
[null,33,null,null,null,null,null,null,null,null,null,null,null,null,0]
[null,34,null,null,null,null,null,null,null,null,null,null,null,null,0]
[null,35,null,null,null,null,null,null,null,null,null,null,null,null,0]
[null,36,null,null,null,null,null,null,null,null,null,null,null,null,0]
[null,37,null,null,null,null,null,null,null,null,null,null,null,null,0]
[null,38,null,null,null,null,null,null,null,null,null,null,null,null,0]
[null,39,null,null,null,null,null,null,null,null,null,null,null,null,0]
[null,40,null,null,null,null,null,null,null,null,null,null,null,null,0]
[null,41,null,null,null,null,null,null,null,null,null,null,null,null,0]
[null,42,null,null,null,null,null,null,null,null,null,null,null,null,0]
[null,43,null,null,null,null,null,null,null,null,null,null,null,null,0]
[null,44,null,null,null,null,null,null,null,null,null,null,null,null,0]
[null,45,null,null,null,null,null,null,null,null,null,null,null,null,0]
[null,46,null,null,null,null,null,null,null,null,null,null,null,null,0]
[null,47,null,null,null,null,null,null,null,null,null,null,null,null,0]
[null,48,null,null,null,null,null,null,null,null,null,null,null,null,0]
[null,49,null,null,null,null,null,null,null,null,null,null,null,null,0]
[null,50,null,null,null,null,null,null,null,null,null,null,null,null,0]
[null,51,null,null,null,null,null,null,null,null,null,null,null,null,0]
[null,52,null,null,null,null,null,null,null,null,null,null,null,null,0]
[null,53,null,null,null,null,null,null,null,null,null,null,null,null,0]
[null,54,null,null,null,null,null,null,null,null,null,null,null,null,0]
[null,55,null,null,null,null,null,null,null,null,null,null,null,null,0]
[null,56,null,null,null,null,null,null,null,null,null,null,null,null,0]
[]
[null,null,null,null,null,null,null,null,null,null,null,{"$f":"IF(J65>=60,\"CLASIFICADO A 60 Km LIBRE y 80 Km NOVICIO\",IF(J65>=40,\"CLASIFICADO A 40 Km LIBRE y 60 Km NOVICIO\",\"\"))","v":""}]
[]
[]
[]
[]
[]
[]
[]
[]
[]
[]
[]
[]
[]
[]
[]
[]
[]
[null,null,null,null,null,null,null,null,null,null,null,{"$f":"IF(J83>=60,\"CLASIFICADO A 60 Km LIBRE y 80 Km NOVICIO\",IF(J83>=40,\"CLASIFICADO A 40 Km LIBRE y 60 Km NOVICIO\",\"\"))","v":""}]

{"sheet":"NOVICIOS MENORES","index":8,"n_rows":50,"n_cols":15,"rows_kept":50,"cut":false,"hidden":false,"merged":[[5,4,5,14],[4,1,4,3],[4,4,4,14],[1,1,1,14],[2,1,2,14]]}
[]
[null,"PUNTAJE  ACUMULADO"]
[null,"CATEGORÍA MENORES"]
[]
[null,"INFANTIL",null,null,"PUNTAJES"]
[null,null,null,null,2014]
[null,null,"CODIGO","JINETE","I CHONE","II CHONE","III CHONE","IV CHONE","V CHONE","VI CHONE","VII CHONE","VIII CHONE","IX CHONE","X CHONE","ACUMULADO"]
[null,1,"M013","JARAMILLO BENITO",59.91,null,null,59.914399999999993,null,56.28,null,null,58.724399999999996,null,{"$f":"SUM(E8:N8)","v":234.8288}]
[null,2,"M012","MAZAPANTA KEVIN",null,null,59.919999999999995,56.918679999999995,null,null,null,null,null,null,{"$f":"SUM(E9:N9)","v":116.83867999999998}]
[null,3,"M010","FRITZ JULIANA",56.92,null,null,null,null,null,null,null,null,null,{"$f":"SUM(E10:N10)","v":56.92}]
[null,4,"M027","VAZCONEZ CAMILA",null,null,null,null,null,null,null,null,55.78817999999999,null,{"$f":"SUM(E11:N11)","v":55.78817999999999}]
[null,5,null,null,null,null,null,null,null,null,null,null,null,null,0]
[null,6,null,null,null,null,null,null,null,null,null,null,null,null,0]
[null,7,null,null,null,null,null,null,null,null,null,null,null,null,0]
[null,8,null,null,null,null,null,null,null,null,null,null,null,null,0]
[null,9,null,null,null,null,null,null,null,null,null,null,null,null,0]
[null,10,null,null,null,null,null,null,null,null,null,null,null,null,0]
[null,11,null,null,null,null,null,null,null,null,null,null,null,null,0]
[null,12,null,null,null,null,null,null,null,null,null,null,null,null,0]
[null,13,null,null,null,null,null,null,null,null,null,null,null,null,0]
[null,14,null,null,null,null,null,null,null,null,null,null,null,null,0]
[null,15,null,null,null,null,null,null,null,null,null,null,null,null,0]
[null,16,null,null,null,null,null,null,null,null,null,null,null,null,0]
[null,17,null,null,null,null,null,null,null,null,null,null,null,null,0]
[null,18,null,null,null,null,null,null,null,null,null,null,null,null,0]
[null,19,null,null,null,null,null,null,null,null,null,null,null,null,0]
[null,20,null,null,null,null,null,null,null,null,null,null,null,null,0]
[null,21,null,null,null,null,null,null,null,null,null,null,null,null,0]
[null,22,null,null,null,null,null,null,null,null,null,null,null,null,0]
[null,23,null,null,null,null,null,null,null,null,null,null,null,null,0]
[]
[null,null,null,null,null,null,null,null,null,null,null,{"$f":"IF(J32>=60,\"CLASIFICADO A 60 Km LIBRE y 80 Km NOVICIO\",IF(J32>=40,\"CLASIFICADO A 40 Km LIBRE y 60 Km NOVICIO\",\"\"))","v":""}]
[]
[]
[]
[]
[]
[]
[]
[]
[]
[]
[]
[]
[]
[]
[]
[]
[]
[null,null,null,null,null,null,null,null,null,null,null,{"$f":"IF(J50>=60,\"CLASIFICADO A 60 Km LIBRE y 80 Km NOVICIO\",IF(J50>=40,\"CLASIFICADO A 40 Km LIBRE y 60 Km NOVICIO\",\"\"))","v":""}]

{"sheet":"NOVICIOS CABALLOS","index":9,"n_rows":117,"n_cols":16,"rows_kept":117,"cut":false,"hidden":false,"merged":[[5,5,5,15],[4,1,4,4],[4,5,4,15],[1,1,1,15],[2,1,2,15]]}
[]
[null,"PUNTAJE  ACUMULADO"]
[null,"CATEGORÍA CABALLOS NOVICIOS"]
[]
[null,"ELITE CABALLOS",null,null,null,"PUNTAJES"]
[null,null,null,null,null,2014]
[null,null,"CODIGO","CABALLO","DUEÑO/JINETE","I CHONE","II CHONE","III CHONE","IV CHONE","V CHONE","VI CHONE","VII CHONE","VIII CHONE","IX CHONE","X CHONE","ACUMULADO"]
[null,1,"C237","NICOLAS","JARAMILLO MANUELA",111.52,null,117.52999999999997,117.60699999999999,null,112.56,null,null,126.11619999999999,null,{"$f":"+H8+I8+N8","v":361.25319999999994}]
[null,2,"C329","SERENATA CMB","MORABOWEN CESAR",56.92,null,53.92799999999999,null,null,112.56,114.8,103.32,119.81038999999997,null,{"$f":"+K9+L9+N9","v":347.17039}]
[null,3,"C 202","PV RIGUEL","VINTIMILLA CORDERO PABLO JOSE",null,53.4,null,105.8463,120.11999999999999,null,null,null,null,null,{"$f":"SUM(F10:O10)","v":279.36629999999997}]
[null,4,"C143","ALI","MAZAPANTA KEVIN",null,null,59.919999999999995,56.918679999999995,null,null,null,null,119.81038999999997,null,236.64906999999994]
[null,5,"C147","CAMARON","GUARDERAS JOSE GABRIEL",null,null,59.919999999999995,56.918679999999995,null,null,null,null,113.50458,null,230.34325999999999]
[null,6,"C115","AVENTURERO","ALMEIDA AYALA HECTOR",117.39,null,111.65349999999997,null,null,null,null,null,null,null,229.04349999999997]
[null,7,"C210","CHUQUIRAGUA","HIDALGO GUSTAVO",53.92,null,56.923999999999992,111.72664999999999,null,null,null,null,null,null,222.57065]
[null,8,"C194","MD KABUL","ANDRADE FELIPE",105.65,114.11399999999999,null,null,null,null,null,null,null,null,219.76400000000001]
[null,9,"C365","SADIQ","ALMEIDA AYALA HECTOR",null,null,null,111.72664999999999,null,106.93199999999999,null,null,null,null,218.65864999999997]
[null,10,"C281","MK KAROK","GONZALEZ RENATO",null,null,null,null,108.10799999999999,null,109.05999999999999,null,null,null,217.16799999999998]
[null,11,"C174","ZT SATFFANTDU","ARTURO RIBADENEIRA",null,null,99.90049999999998,59.914399999999993,null,null,null,null,55.78817999999999,null,215.60307999999995]
[null,12,"C175","CLAW","ARTURO RIBADENEIRA",99.78,null,105.77699999999999,null,null,null,null,null,null,null,205.55699999999999]
[null,13,"C341","TENGRI","VELEZ MENA MARIA CONSUELO",null,88.48,null,null,null,null,103.32,null,null,null,191.8]
[null,14,"C294","REMOLACHA","MALO DIANA",null,null,null,null,null,null,58.8,null,126.11619999999999,null,184.9162]
[null,15,"C029","MILONGA","JARAMILLO BENITO",null,null,null,59.914399999999993,null,56.28,null,null,58.724399999999996,null,174.9188]
[null,17,"C218","GALAN","DARQUEA DAVALOS ANA MARIA",null,null,null,null,66.36,null,55.859999999999992,null,49.91574,null,172.13574]
[null,18,"C 337","CAPORAL","NOBOA MAURICIO",null,53.8,41.943999999999996,null,53.088000000000001,56.28,49.97999999999999,58.8,55.78817999999999,null,{"$f":"G24+K24+M24","v":168.88}]
[null,19,"C243","PAVITA","MEDINA CARVAJAL JORGE",null,null,null,null,59.724000000000004,null,52.92,47.04,null,null,{"$f":"SUM(F25:O25)","v":159.684}]
[null,20,"C200","MULATA","RECALDE GALO",32.950000000000003,null,null,117.60699999999999,null,null,null,null,null,null,150.55699999999999]
[null,21,"C367","SHAKIRA MD","GONZALEZ SEBASTIAN",88.83,null,null,53.922959999999996,null,null,null,null,null,null,142.75296]
[null,22,"C229","BULERIA","LOYOLA VINTIMILLA TEODORO ANDRES",null,null,null,null,46.451999999999998,null,44.099999999999994,41.16,null,null,131.71199999999999]
[null,23,"C324","RANCHERO","MORALES ANDRES",35.950000000000003,null,null,35.948639999999997,null,56.28,null,null,null,null,128.17864]
[null,24,"C134","JUPITER","ALMEIDA AYALA HECTOR",null,120.11999999999999,null,null,null,null,null,null,null,null,120.11999999999999]
[null,25,"C278","JUGUETE","ESPINOZA ALVARADO JUAN SEBASTIAN",null,null,null,null,120.11999999999999,null,null,null,null,null,120.11999999999999]
[null,26,"C208","ARAGON","MALO TORAL DAVID",null,120.11999999999999,null,null,null,null,null,null,null,null,120.11999999999999]
[null,27,"C151","ILUSION","SERRANO ARMANDO JOSE",null,null,117.52999999999997,null,null,null,null,null,null,null,117.52999999999997]
[null,28,"C154","SHAKIRA","LETORT JOSE IGNACIO",117.39,null,null,null,null,null,null,null,null,null,117.39]
[null,29,"C130","ESPIRITU DEL ECUADOR","BERREZUETA DELGADO PABLO SANTIAGO",null,null,null,null,null,null,null,55.859999999999992,58.724399999999996,null,114.58439999999999]
[null,31,"C201","SHASHENKA","MATUTE RIOFRIO PEDRO FERMIN",null,114.11399999999999,null,null,null,null,null,null,null,null,114.11399999999999]
[null,32,"C192","KALA","SANCHEZ VEGA SANTIAGO",null,null,null,null,59.724000000000004,null,52.92,null,null,null,112.64400000000001]
[null,33,"C124","BAILARINA","GUARDERAS PEDRO JOSE",null,null,111.65349999999997,null,null,null,null,null,null,null,111.65349999999997]
[null,34,"C138","LOICA","CHANGO ESTEFANIA",111.52,null,null,null,null,null,null,null,null,null,111.52]
[null,35,"C364","SHIMA","SAMPER ALVARO",null,null,null,59.914399999999993,null,47.838000000000001,null,null,null,null,107.75239999999999]
[null,36,"C202","RIGUEL","VINTIMILLA PABLO JOSE",null,null,null,105.8463,null,null,null,null,null,null,105.8463]
[null,37,"C333","HAAKIR","CORNEJO MANUEL",105.65,null,null,null,null,null,null,null,null,null,105.65]
[null,38,"C238","CALEÑA CMB","SIMON NICOLAS",null,null,null,53.922959999999996,null,null,null,null,49.91574,null,103.83869999999999]
[null,39,"C360","PSICOTICO","MANCHENO GALO PATRICIO",null,null,null,null,null,50.652000000000008,null,null,52.851959999999991,null,103.50396000000001]
[null,40,"C332","MD SOHAT","SERRANO ARMANDO JOSE",50.93,null,null,50.927239999999991,null,null,null,null,null,null,101.85723999999999]
[null,41,"C071","SARA WT","KOPPEL OSWALDO",99.78,null,null,null,null,null,null,null,null,null,99.78]
[null,42,"C059","GS RASHID","CASTILLO DIEGO",null,null,null,44.9358,null,53.465999999999994,null,null,null,null,98.401799999999994]
[null,43,"C234","EL PADRINO","MALO JAIME",null,null,null,null,null,null,97.58,null,null,null,97.58]
[null,44,"C049","KALIFA","MEDINA JORGE",null,null,null,null,null,53.465999999999994,null,44.099999999999994,null,null,97.565999999999988]
[null,45,"C025","MORANTE","MORENO DANIEL",93.91,null,null,null,null,null,null,null,null,null,93.91]
[null,46,"C261","GRINGO","BARAHONA VACA ANDRES",41.94,null,47.936,null,null,null,null,null,null,null,89.876000000000005]
[null,47,"C150","COCHIS","MALO GELIBERT ANDREA",null,null,null,null,88.48,null,null,null,null,null,88.48]
[null,48,"C041","ZUCO","SERRANO FELIPE",88.04,null,null,null,null,null,null,null,null,null,88.04]
[null,49,"C257","CHAGRA","RAMIREZ FABRICIO",null,null,38.948,47.931519999999999,null,null,null,null,null,null,86.879519999999999]
[null,50,"C286","NEGRO EG","BURBANO VILLAVICENCIO JAIME SEBASTIAN",null,84.055999999999997,null,null,null,null,null,null,null,null,84.055999999999997]
[null,51,"C013","BAYO K BAYO","ESPINOSA BARBARA",82.17,null,null,null,null,null,null,null,null,null,82.17]
[null,52,"C320","ESPARTACO","TORRES JOSUE",null,79.632000000000005,null,null,null,null,null,null,null,null,{"$f":"SUM(F57:O57)","v":79.632000000000005}]
[null,53,"C191","TEQUILA","ALLAICO CHIMBORAZO JOSE EMILIO",null,null,null,null,66.36,null,null,null,null,null,66.36]
[null,54,"C325","PSYNCINATTI","ESCOBAR LUIS",null,null,59.919999999999995,null,null,null,null,null,null,null,59.919999999999995]
[null,55,"C069","KAFIR","MIÑO JOSE RICARDO",59.91,null,null,null,null,null,null,null,null,null,59.91]
[null,56,"C019","CHULPI","JARAMILLO BENITO",59.91,null,null,null,null,null,null,null,null,null,59.91]
[null,57,"C233","BAUTRUS YUSUF","JARAMILLO BENITO",59.91,null,null,null,null,null,null,null,null,null,59.91]
[null,58,"C283","MAGIC ONE","DONOSO LOYOLA SEBASTIAN FERNAN",null,null,null,null,null,null,null,null,58.724399999999996,null,58.724399999999996]
[null,59,"C181","RAYUELA","POLIT JULIA",56.92,null,null,null,null,null,null,null,null,null,56.92]
[null,60,"C163","LULY","FRITZ JULIANA",56.92,null,null,null,null,null,null,null,null,null,56.92]
[null,61,"C162","COLORADO","HIDALGO GUSTAVO",null,null,null,56.918679999999995,null,null,null,null,null,null,56.918679999999995]
[null,62,"C333","KADIN","ALLAICO CHIMBORAZO JOSE EMILIO",null,null,null,null,null,null,55.859999999999992,null,null,null,55.859999999999992]
[null,63,"C388","CASTAÑUELA","LETORT MENA JOSE",null,null,null,null,null,null,null,null,55.78817999999999,null,55.78817999999999]
[null,64,"C348","KA SAU","WILLIAMS JEMMA",null,54.9,null,null,null,null,null,null,null,null,54.9]
[null,65,"C328","ZULA","MEDINA JORGE",53.92,null,null,null,null,null,null,null,null,null,53.92]
[null,66,"C351","CARNIVAL RHYDER","VINTIMILLA SERRANO PABLO XAVIER",null,53.45,null,null,null,null,null,null,null,null,53.45]
[null,67,"C352","TIBE","ALVEAR JUAN CARLOS",null,53.4,null,null,null,null,null,null,null,null,53.4]
[null,68,"C353","TOCHI","GONZALEZ SEBASTIAN",null,53.15,null,null,null,null,null,null,null,null,53.15]
[null,69,"C354","VIANCA","REIVAN GORDILLO JHONZON VINICIO",null,53,null,null,null,null,null,null,null,null,53]
[null,70,"C242","DUBAI","LOPEZ MIRANDA",null,null,null,null,null,null,null,52.92,null,null,52.92]
[null,71,"C153","TANGER","JIJON ANA FRANCISCA",null,null,null,null,null,null,null,null,52.851959999999991,null,52.851959999999991]
[null,72,"C326","KA SAN","WILLIAMS JEMMA",null,null,50.931999999999988,null,null,null,null,null,null,null,50.931999999999988]
[null,73,"C366","MAGO GH","MORAN KEVIN GUILLERMO",null,null,null,50.927239999999991,null,null,null,null,null,null,50.927239999999991]
[null,74,"C344","GITANA","ANDRADE ANDRADE EMILIA",null,null,null,null,null,null,null,49.97999999999999,null,null,49.97999999999999]
[null,75,"C163","AR SEGOVIA","RIBADENEIRA ARTURO",47.93,null,null,null,null,null,null,null,null,null,47.93]
[null,76,"C055","TUMBA HOMBRES","MALO TORAL DAVID",null,null,null,null,null,null,47.04,null,null,null,47.04]
[null,77,"C383","CHEQUE","SAMPER ALVARO",null,null,null,null,null,null,null,null,46.979520000000001,null,46.979520000000001]
[null,78,"C113","CHIVIRIKA","NEUMANN KARINA",44.94,null,null,null,null,null,null,null,null,null,44.94]
[null,79,"C331","LIA","NOBOA MAURICIO",null,null,44.939999999999991,null,null,null,null,null,null,null,44.939999999999991]
[null,80,"C375","CAYETANA","ALVEAR JUAN CARLOS",null,null,null,null,null,null,null,null,44.043299999999995,null,44.043299999999995]
[null,81,"C330","PIBE","BURBANO SERRANO JAIME ROLANDO",null,null,null,41.940079999999995,null,null,null,null,null,null,41.940079999999995]
[null,82,"C204","AR ALBATSYN","ARTURO RIBADENEIRA",null,null,null,38.944359999999996,null,null,null,null,null,null,38.944359999999996]
[null,83,"C039","PALOMA","TORRES WLADIMIRO",38.94,null,null,null,null,null,null,null,null,null,38.94]
[null,84,null,null,null,null,null,null,null,null,null,null,null,null,null,{"$f":"SUM(F89:O89)","v":0}]
[null,85,null,null,null,null,null,null,null,null,null,null,null,null,null,0]
[null,86,null,null,null,null,null,null,null,null,null,null,null,null,null,0]
[null,87,null,null,null,null,null,null,null,null,null,null,null,null,null,0]
[null,88,null,null,null,null,null,null,null,null,null,null,null,null,null,0]
[null,89,null,null,null,null,null,null,null,null,null,null,null,null,null,0]
[null,90,null,null,null,null,null,null,null,null,null,null,null,null,null,0]
[null,91,null,null,null,null,null,null,null,null,null,null,null,null,null,0]
[null,92,null,null,null,null,null,null,null,null,null,null,null,null,null,0]
[]
[null,null,null,null,null,null,null,null,null,null,null,null,{"$f":"IF(K99>=60,\"CLASIFICADO A 60 Km LIBRE y 80 Km NOVICIO\",IF(K99>=40,\"CLASIFICADO A 40 Km LIBRE y 60 Km NOVICIO\",\"\"))","v":""}]
[]
[]
[]
[]
[]
[]
[]
[]
[]
[]
[]
[]
[]
[]
[]
[]
[]
[null,null,null,null,null,null,null,null,null,null,null,null,{"$f":"IF(K117>=60,\"CLASIFICADO A 60 Km LIBRE y 80 Km NOVICIO\",IF(K117>=40,\"CLASIFICADO A 40 Km LIBRE y 60 Km NOVICIO\",\"\"))","v":""}]

{"sheet":"INFANTIL","index":10,"n_rows":50,"n_cols":15,"rows_kept":50,"cut":false,"hidden":false,"merged":[[5,4,5,14],[4,1,4,3],[4,4,4,14],[1,1,1,14],[2,1,2,14]]}
[]
[null,"PUNTAJE  ACUMULADO"]
[null,"CATEGORÍA JUVENIL INFANTIL"]
[]
[null,"NOVICIOS MENORES",null,null,"PUNTAJES"]
[null,null,null,null,2014]
[null,null,"CODIGO","JINETE","I CHONE","II CHONE","III CHONE","IV CHONE","V CHONE","VI CHONE","VII CHONE","VIII CHONE","IX CHONE","X CHONE","ACUMULADO"]
[null,1,"I009","JARAMILLO SAMUEL",29.96,null,29.959999999999997,29.957199999999997,28.14,null,null,null,29.362199999999998,null,{"$f":"SUM(E8:N8)","v":147.3794}]
[null,2,"I034","SERRANO OLIVIA",null,26.733000000000001,null,null,null,null,null,null,27.894089999999995,null,54.627089999999995]
[null,3,"I022","CORDOVA MATIAS",null,33.18,null,null,null,null,null,null,null,null,33.18]
[null,4,"I026","LOYOLA LANDIVAR JOSE EDUARDO",null,31.520999999999997,null,null,null,null,null,null,null,null,31.520999999999997]
[null,5,"I027","TORRES RAFAEL",null,29.862000000000002,null,null,null,null,null,null,null,null,29.862000000000002]
[null,6,"I028","INGAREVALO MALDONADO JUAN JOSE",null,28.202999999999999,null,null,null,null,null,null,null,null,28.202999999999999]
[null,7,"I034","DONOSO JULIAN",null,26.544,null,null,null,null,null,null,null,null,26.544]
[null,8,"I035","GONZALEZ CORDERO ANDREA CAROLINA",null,24.884999999999998,null,null,null,null,null,null,null,null,24.884999999999998]
[null,9,null,null,null,null,null,null,null,null,null,null,null,null,{"$f":"SUM(E16:N16)","v":0}]
[null,10,null,null,null,null,null,null,null,null,null,null,null,null,0]
[null,11,null,null,null,null,null,null,null,null,null,null,null,null,0]
[null,12,null,null,null,null,null,null,null,null,null,null,null,null,0]
[null,13,null,null,null,null,null,null,null,null,null,null,null,null,0]
[null,14,null,null,null,null,null,null,null,null,null,null,null,null,0]
[null,15,null,null,null,null,null,null,null,null,null,null,null,null,0]
[null,16,null,null,null,null,null,null,null,null,null,null,null,null,0]
[null,17,null,null,null,null,null,null,null,null,null,null,null,null,0]
[null,18,null,null,null,null,null,null,null,null,null,null,null,null,0]
[null,19,null,null,null,null,null,null,null,null,null,null,null,null,0]
[null,20,null,null,null,null,null,null,null,null,null,null,null,null,0]
[null,21,null,null,null,null,null,null,null,null,null,null,null,null,0]
[null,22,null,null,null,null,null,null,null,null,null,null,null,null,0]
[null,23,null,null,null,null,null,null,null,null,null,null,null,null,0]
[]
[null,null,null,null,null,null,null,null,null,null,null,{"$f":"IF(J32>=60,\"CLASIFICADO A 60 Km LIBRE y 80 Km NOVICIO\",IF(J32>=40,\"CLASIFICADO A 40 Km LIBRE y 60 Km NOVICIO\",\"\"))","v":""}]
[]
[]
[]
[]
[]
[]
[]
[]
[]
[]
[]
[]
[]
[]
[]
[]
[]
[null,null,null,null,null,null,null,null,null,null,null,{"$f":"IF(J50>=60,\"CLASIFICADO A 60 Km LIBRE y 80 Km NOVICIO\",IF(J50>=40,\"CLASIFICADO A 40 Km LIBRE y 60 Km NOVICIO\",\"\"))","v":""}]

{"sheet":"BINOMIOS","index":11,"n_rows":165,"n_cols":17,"rows_kept":165,"cut":false,"hidden":false,"merged":[[5,6,5,16],[4,1,4,3],[4,6,4,16],[1,1,1,16],[2,1,2,16]]}
[]
[null,"PUNTAJE  ACUMULADO"]
[null,"CATEGORÍA BINOMIOS"]
[]
[null,"BINOMIOS",null,null,null,null,"PUNTAJES"]
[null,null,null,null,null,null,2014]
[null,null,"CODIGO","JINETE","CODIGO","CABALLO","I CHONE","II CHONE","III CHONE","IV CHONE","V CHONE","VI CHONE","VII CHONE","VIII CHONE","IX CHONE","X CHONE","ACUMULADO"]
[null,1,"A052","DARQUEA BERNARDO","C136","FARHA CONEJA",null,null,98.699999999999989,245.10799999999998,null,null,null,null,243.82999999999998,null,{"$f":"SUM(G8:P8)","v":587.63799999999992}]
[null,2,"J013","MORILLO SERGIO","C072","QUITA PENAS",81.31,null,null,245.10799999999998,null,null,null,null,243.82999999999998,null,{"$f":"SUM(G9:P9)","v":570.24800000000005}]
[null,3,"J 063","GONZALEZ CARVALLO BERNARDA","C 232","ASRAEL",null,163.01999999999998,null,168.01,null,null,155.79999999999998,null,null,null,{"$f":"SUM(G10:P10)","v":486.82999999999993}]
[null,4,"J079","JARAMILLO MANUELA","C237","NICOLAS",111.52,null,117.52999999999997,117.60699999999999,null,112.56,null,null,126.11619999999999,null,{"$f":"SUM(I11:P11)","v":473.81319999999994}]
[null,5,"J020","SERRANO FELIPE","C041","ZUCO",88.04,null,null,151.209,null,null,null,null,231.63849999999996,null,{"$f":"SUM(G12:P12)","v":470.88749999999999}]
[null,6,"J055","LOYOLA CLAUDIA MARIA","C197","PATACON",null,null,159.50499999999997,159.6095,null,null,147.6,null,null,null,{"$f":"SUM(G13:P13)","v":466.71449999999993}]
[null,7,"A045","MORABOWEN CESAR","C329","SERENATA CMB",56.92,null,53.927999999999997,null,null,112.56,114.8,103.32,119.81038999999997,null,{"$f":"SUM(L14:P14)","v":450.49038999999999}]
[null,8,"J047","LETORT JOSE IGNACIO","C154","SHAKIRA",117.39,null,167.89999999999998,null,null,null,null,null,162.14940000000001,null,{"$f":"SUM(G15:P15)","v":447.43939999999998}]
[null,9,"A055","WEEMAELS NATHALIE","C093","CG ALLASKI",null,null,151.10999999999999,220.59719999999999,null,null,null,null,null,null,371.70719999999994]
[null,10,"A059","ALMEIDA AYALA HECTOR","C097","CENTAURO",null,null,134.32,null,null,null,null,null,207.25549999999998,null,341.57549999999998]
[null,11,"A026","LETORT MENA JOSE","C046","AMARETO",167.7,null,159.50499999999997,null,null,null,null,null,null,null,327.20499999999993]
[null,12,"A060","RECALDE JUAN JOSE","C200","MULATA",null,null,88.83,117.60699999999999,null,114.57000000000001,null,null,null,null,321.00700000000001]
[null,13,"A056","MORILLO MAURICIO","C094","MISTERIO",85.59,null,null,null,null,null,null,null,231.63849999999996,null,317.22849999999994]
[null,14,"A177","RAMIREZ FABRICIO","C257","CHAGRA",null,null,38.948,47.931519999999999,null,108.54,null,null,121.16999999999999,null,316.58951999999999]
[null,15,"A056","MORILLO MAURICIO","C106","ZEUS LL",null,null,167.89999999999998,null,null,136.68,null,null,null,null,304.58]
[null,16,"A171","VELEZ MENA MARIA CONSUELO","C341","TENGRI",null,88.48,null,null,null,null,103.32,109.05999999999999,null,null,300.86]
[null,17,"J 054","VINTIMILLA CORDERO PABLO JOSE","C 202","PV RIGUEL",null,66.36,null,105.85,120.11999999999999,null,null,null,null,null,292.33]
[null,18,"A 081","KOPPEL VINTIMILLA OSWALDO JAVIER","C 134","JUPITER",null,120.11999999999999,null,null,null,null,164,null,null,null,284.12]
[null,19,"A081","KOPPEL OSWALDO","C115","AVENTURERO",null,null,111.65349999999997,168.01,null,null,null,null,null,null,279.66349999999994]
[null,20,"J021","CORNEJO MANUEL","C333","HAAKIR",105.65,null,null,null,null,null,null,null,171.15769999999998,null,276.80769999999995]
[null,21,"A051","GUARDERAS SEBASTIAN","C086","GHAFIL",null,null,142.71499999999997,null,null,128.64000000000001,null,null,null,null,271.35500000000002]
[null,22,"A059","ALMEIDA AYALA HECTOR","C115","AVENTURERO",117.39,null,null,null,null,152.76,null,null,null,null,270.14999999999998]
[null,23,"A014","MALO DIANA","C294","REMOLACHA",null,null,null,null,null,null,58.8,84,126.11619999999999,null,268.9162]
[null,24,"J087","MALO TORAL DAVID","C 208","ARAGON",null,120.11999999999999,null,142.80849999999998,null,null,null,null,null,null,262.92849999999999]
[null,25,"A058","RIBADENEIRA ARTURO","C188","FRODO",null,null,null,232.85259999999997,null,null,null,null,null,null,232.85259999999997]
[null,26,"J057","GUARDERAS JOSE GABRIEL","C147","CAMARON",null,null,59.919999999999995,56.918679999999995,null,null,null,null,113.50458,null,230.34325999999999]
[null,27,"A033","SERRANO ARMANDO JOSE","C332","MD SOHAT",50.93,null,null,50.927239999999991,null,120.60000000000001,null,null,null,null,222.45724000000001]
[null,28,"A081","KOPPEL OSWALDO","C114","KAFIR HA",null,null,null,null,null,null,null,null,219.447,null,219.447]
[null,29,"A140","GONZALEZ RENATO","C281","MK KAROK",null,null,null,null,108.10799999999999,null,109.05999999999999,null,null,null,217.16799999999998]
[null,30,"A130","MALO JAIME","C234","EL PADRINO",null,null,null,null,null,null,97.58,114.8,null,null,212.38]
[null,31,"J050","FRITZ PAULA","C175","CLAW",99.78,null,105.77699999999999,null,null,null,null,null,null,null,205.55699999999999]
[null,32,"A046","NOBOA MAURICIO","C 337","CAPORAL",null,63.041999999999994,null,119.89400000000001,null,null,null,null,null,null,182.93600000000001]
[null,33,"A060","RECALDE JUAN JOSE","C098","BOMBON",null,null,null,null,null,null,null,null,180.166,null,180.166]
[null,34,"J087","MALO TORAL DAVID","C120","MD KABUL",null,null,null,null,null,null,null,null,180.166,null,180.166]
[null,35,"M013","JARAMILLO BENITO","C029","MILONGA",null,null,null,59.914399999999993,null,56.28,null,null,58.724399999999996,null,174.9188]
[null,36,"J 034","ANDRADE PAREDES JOSE DANIEL","C350","BZ RHEEMAH",null,171.6,null,null,null,null,null,null,null,null,171.6]
[null,37,"J099","RODITTI CARVAJAL CRISTORO","C337","CAPORAL",null,null,null,null,53.088000000000001,56.28,null,58.8,null,null,168.16800000000001]
[null,38,"J034","ANDRADE JOSE DANIEL","C193","SHIVAGO",167.7,null,null,null,null,null,null,null,null,null,167.7]
[null,39,"A169","SANCHEZ VEGA SANTIAGO","C192","KALA",null,null,null,null,59.724000000000004,null,52.92,52.92,null,null,165.56400000000002]
[null,40,"J034","ANDRADE JOSE DANIEL","C194","KABUL",null,null,null,null,null,null,164,null,null,null,{"$f":"SUM(G47:P47)","v":164}]
[null,41,"A059","ALMEIDA AYALA HECTOR","C134","JUPITER",null,null,null,null,null,null,null,164,null,null,164]
[null,42,"A172","BURBANO SERRANO JAIME ROLANDO","C297","SAILER EG",null,94.8,null,null,66.36,null,null,null,null,null,161.16]
[null,43,"A047","NEUMANN KARINA","C136","FARHA CONEJA",null,null,null,null,null,160.80000000000001,null,null,null,null,160.80000000000001]
[null,44,"J034","ANDRADE JOSE DANIEL","C175","CLAW",null,null,null,null,null,160.80000000000001,null,null,null,null,160.80000000000001]
[null,45,"A092","VINTIMILLA PABLO","C074","WISKY",null,null,null,159.6095,null,null,null,null,null,null,159.6095]
[null,46,"A035","PORTILLA FELIPE","C204","AR ALBATSYN",null,null,null,38.944359999999996,null,null,null,null,115.11149999999998,null,154.05585999999997]
[null,47,"J008","GOMEZ ALEXANDER","C114","KAFIR HA",null,null,151.10999999999999,null,null,null,null,null,null,null,151.10999999999999]
[null,48,"A181","ALLAICO CHIMBORAZO JOSE EMILIO",null,"TEQUILA",null,null,null,null,66.36,null,null,84,null,null,150.36000000000001]
[null,49,"A058","RIBADENEIRA ARTURO","C096","AR FAISAN",null,null,null,null,null,144.72000000000003,null,null,null,null,144.72000000000003]
[null,50,"J008","GOMEZ ALEXANDER","C148","FUERTE",null,null,null,134.40799999999999,null,null,null,null,null,null,134.40799999999999]
[null,51,"J090","LOYOLA VINTIMILLA TEODORO ANDRES","C229","BULERIA",null,null,null,null,46.451999999999998,null,44.099999999999994,41.16,null,null,131.71199999999999]
[null,52,"A165","MORALES ANDRES","C324","RANCHERO",35.950000000000003,null,null,35.948639999999997,null,56.28,null,null,null,null,128.17864]
[null,53,"J089","DARQUEA DAVALOS ANA MARIA","C218","GALAN",null,null,null,null,66.36,null,55.859999999999992,null,null,null,122.22]
[null,54,"J019","DARQUEA RICARDO","C143","ALI",null,null,null,null,null,null,null,null,119.81038999999997,null,119.81038999999997]
[null,55,"A033","SERRANO ARMANDO JOSE","C151","ILUSION",null,null,117.52999999999997,null,null,null,null,null,null,null,117.52999999999997]
[null,56,"A158","WILLIAMS JEMMA","C348","KA SAU",null,66.36,50.931999999999988,null,null,null,null,null,null,null,117.29199999999999]
[null,57,"M012","MAZAPANTA KEVIN","C143","ALI",null,null,59.919999999999995,56.918679999999995,null,null,null,null,null,null,116.83867999999998]
[null,58,"A092","VINTIMILLA SERRANO PABLO XAVIER","C351","CARNIVAL RHYDER",null,59.724000000000004,null,null,null,null,null,55.859999999999992,null,null,115.584]
[null,59,"J091","BERREZUETA DELGADO PABLO SANTI","C130","ESPIRITU DEL ECUADOR",null,null,null,null,null,null,58.8,55.859999999999992,null,null,114.66]
[null,60,"J 056","MATUTE RIOFRIO PEDRO FERMIN","C 201","SHASHENKA",null,114.11399999999999,null,null,null,null,null,null,null,null,114.11399999999999]
[null,61,"A 057","DAVILA JUAN DIEGO","C 194","KABUL",null,114.11399999999999,null,null,null,null,null,null,null,null,114.11399999999999]
[null,62,"J081","MEDINA CARVAJAL JORGE","C243","PAVITA",null,null,null,null,59.724000000000004,null,52.92,null,null,null,112.64400000000001]
[null,63,"J007","ESPINOZA TOMAS","C210","CHUQUIRAGUA",null,null,null,111.72664999999999,null,null,null,null,null,null,111.72664999999999]
[null,64,"A172","BURBANO VILLAVICENCIO JAIME SE","C365","SADIQ",null,null,null,111.72664999999999,null,null,null,null,null,null,111.72664999999999]
[null,65,"J014","GUARDERAS PEDRO JOSE","C124","BAILARINA",null,null,111.65349999999997,null,null,null,null,null,null,null,111.65349999999997]
[null,66,"A078","CHANGO ESTEFANIA","C138","LOICA",111.52,null,null,null,null,null,null,null,null,null,111.52]
[null,67,"A010","HIDALGO GUSTAVO","C210","CHUQUIRAGUA",53.92,null,56.923999999999992,null,null,null,null,null,null,null,110.84399999999999]
[null,68,"A135","DONOSO LOYOLA SEBASTIAN FERNANDO","C323","GH MAGIC ONE",null,null,null,null,null,null,null,49.97999999999999,58.724399999999996,null,108.70439999999999]
[null,69,"A123","SAMPER ALVARO","C364","SHIMA",null,null,null,59.914399999999993,null,47.838000000000001,null,null,null,null,107.75239999999999]
[null,70,"A081","KOPPEL OSWALDO","C365","SADIQ",null,null,null,null,null,106.93199999999999,null,null,null,null,106.93199999999999]
[null,71,"A124","GONZALEZ SEBASTIAN","C194","MD KABUL",105.65,null,null,null,null,null,null,null,null,null,105.65]
[null,72,"J088","SIMON NICOLAS","C238","CALEÑA CMB",null,null,null,53.922959999999996,null,null,null,null,49.91574,null,{"$f":"SUM(G79:P79)","v":103.83869999999999}]
[null,73,"A018","MANCHENO GALO PATRICIO","C360","PSICOTICO",null,null,null,null,null,50.652000000000008,null,null,52.851959999999991,null,103.50396000000001]
[null,74,"J049","FRITZ SEBASTIAN","C174","ZT SATFFANTDU",null,null,99.90049999999998,null,null,null,null,null,null,null,99.90049999999998]
[null,75,"A081","KOPPEL OSWALDO","C071","SARA WT",99.78,null,null,null,null,null,null,null,null,null,99.78]
[null,76,"A064","CASTILLO DIEGO","C059","GS RASHID",null,null,null,44.9358,null,53.465999999999994,null,null,null,null,98.401799999999994]
[null,77,"J043","MORENO DANIEL","C025","MORANTE",93.91,null,null,null,null,null,null,null,null,null,93.91]
[null,78,"A080","GOMEZ JUAN MARTIN","C135","CARAGUAY",null,null,93.764999999999986,null,null,null,null,null,null,null,93.764999999999986]
[null,79,"A048","BARAHONA VACA ANDRES","C261","GRINGO",41.94,null,47.936,null,null,null,null,null,null,null,89.876000000000005]
[null,80,"A145","MALO GELIBERT ANDREA","C150","COCHIS",null,null,null,null,88.48,null,null,null,null,null,88.48]
[null,81,"J024","DARQUEA RAFAELLA","C136","FARHA CONEJA",85.59,null,null,null,null,null,null,null,null,null,85.59]
[null,82,"A172","BURBANO VILLAVICENCIO JAIME SEBASTIAN","C284","NEGRO EG",null,84.055999999999997,null,null,null,null,null,null,null,null,84.055999999999997]
[null,83,"J063","GONZALEZ BERNARDA","C333","KADIN",null,null,null,null,null,null,null,84,null,null,84]
[null,84,"J065","ESPINOSA BARBARA","C013","BAYO K BAYO",82.17,null,null,null,null,null,null,null,null,null,82.17]
[null,85,"A060","RECALDE JUAN JOSE","C070","GR NURIA",81.31,null,null,null,null,null,null,null,null,null,81.31]
[null,86,"A170","TORRES JOSUE","C339","ESPARTACO",null,79.632000000000005,null,null,null,null,null,null,null,null,79.632000000000005]
[null,87,"J019","DARQUEA RICARDO","C029","MILONGA",77.03,null,null,null,null,null,null,null,null,null,77.03]
[null,88,"J005","JIJON MARIA PAULA","C036","FERMIN",72.75,null,null,null,null,null,null,null,null,null,72.75]
[null,89,"A176","ESCOBAR LUIS","C325","PSYNCINATTI",null,null,59.919999999999995,null,null,null,null,null,null,null,59.919999999999995]
[null,90,"J059","DUBACH CAROLINA","C174","ZT SATFFANTDU",null,null,null,59.914399999999993,null,null,null,null,null,null,59.914399999999993]
[null,91,"J016","MIÑO JOSE RICARDO","C069","KAFIR",59.91,null,null,null,null,null,null,null,null,null,59.91]
[null,92,"A025","JARAMILLO BENITO","C233","BAUTRUS YUSUF",59.91,null,null,null,null,null,null,null,null,null,59.91]
[null,93,"M013","JARAMILLO BENITO","C019","CHULPI",59.91,null,null,null,null,null,null,null,null,null,59.91]
[null,94,"A190","LOZADA ARMANDO","C252","BIANCA",null,null,null,null,null,null,null,58.8,null,null,58.8]
[null,95,"J051","POLIT JULIA","C181","RAYUELA",56.92,null,null,null,null,null,null,null,null,null,56.92]
[null,96,"M010","FRITZ JULIANA","C163","LULY",56.92,null,null,null,null,null,null,null,null,null,56.92]
[null,97,"A010","HIDALGO GUSTAVO","C162","COLORADO",null,null,null,56.918679999999995,null,null,null,null,null,null,56.918679999999995]
[null,98,"A021","ALVEAR JUAN CARLOS","C352","TIBE",null,56.405999999999999,null,null,null,null,null,null,null,null,56.405999999999999]
[null,99,"A181","ALLAICO CHIMBORAZO JOSE EMILIO","C333","KADIN",null,null,null,null,null,null,55.859999999999992,null,null,null,55.859999999999992]
[null,100,"A026","LETORT MENA JOSE","C388","CASTAÑUELA",null,null,null,null,null,null,null,null,55.78817999999999,null,55.78817999999999]
[null,101,"M027","VAZCONEZ CAMILA","C334","CAPORAL",null,null,null,null,null,null,null,null,55.78817999999999,null,55.78817999999999]
[null,102,"A142","GONZALEZ SEBASTIAN","C367","SHAKIRA MO",null,null,null,53.922959999999996,null,null,null,null,null,null,53.922959999999996]
[null,103,"J081","MEDINA JORGE","C328","ZULA",53.92,null,null,null,null,null,null,null,null,null,53.92]
[null,104,"J081","MEDINA JORGE","C049","KALIFA",null,null,null,null,null,53.465999999999994,null,null,null,null,{"$f":"SUM(G111:P111)","v":53.465999999999994}]
[null,105,"A142","GONZALEZ SEBASTIAN","C353","TOCHI",null,53.088000000000001,null,null,null,null,null,null,null,null,53.088000000000001]
[null,106,"J094","LOPEZ MIRANDA","C242","DUBAI",null,null,null,null,null,null,null,52.92,null,null,52.92]
[null,107,"A184","MORAN KEVIN GUILLERMO","C366","MAGO GH",null,null,null,50.927239999999991,null,null,null,null,null,null,50.927239999999991]
[null,108,"J093","LOPEZ EMILIA","C337","CAPORAL",null,null,null,null,null,null,49.97999999999999,null,null,null,49.97999999999999]
[null,109,"J082","ANDRADE ANDRADE EMILIA","C344","GITANA",null,null,null,null,null,null,null,49.97999999999999,null,null,49.97999999999999]
[null,110,"A046","NOBOA MAURICIO","C384","GALAN",null,null,null,null,null,null,null,null,49.91574,null,49.91574]
[null,111,"A173","REIVAN GORDILLO JHONZON VINICIO","C354","VIANCA",null,49.769999999999996,null,null,null,null,null,null,null,null,49.769999999999996]
[null,112,"A058","RIBADENEIRA ARTURO","C163","AR SEGOVIA",47.93,null,null,null,null,null,null,null,null,null,47.93]
[null,113,"J087","MALO TORAL DAVID","C055","TUMBA HOMBRES",null,null,null,null,null,null,47.04,null,null,null,47.04]
[null,114,"A123","SAMPER ALVARO","C383","CHEQUE",null,null,null,null,null,null,null,null,46.979520000000001,null,46.979520000000001]
[null,115,"A047","NEUMANN KARINA","C113","CHIVIRIKA",44.94,null,null,null,null,null,null,null,null,null,44.94]
[null,116,"A046","NOBOA MAURICIO","C331","LIA",null,null,44.939999999999991,null,null,null,null,null,null,null,44.939999999999991]
[null,117,"J093","LOPEZ EMILIA","C240","KALIFA",null,null,null,null,null,null,null,44.099999999999994,null,null,44.099999999999994]
[null,118,"A021","ALVEAR JUAN CARLOS","C375","CAYETANA",null,null,null,null,null,null,null,null,44.043299999999995,null,44.043299999999995]
[null,119,"A178","ANDRADE JUAN CARLOS","C334","CAPORAL",null,null,41.943999999999996,null,null,null,null,null,null,null,41.943999999999996]
[null,120,"A185","BURBANO SERRANO JAIME ROLANDO","C330","PIBE",null,null,null,41.940079999999995,null,null,null,null,null,null,41.940079999999995]
[null,121,"A019","TORRES WLADIMIRO","C039","PALOMA",38.94,null,null,null,null,null,null,null,null,null,38.94]
[null,122,"A024","RECALDE GALO","C200","MULATA",32.950000000000003,null,null,null,null,null,null,null,null,null,32.950000000000003]
[null,123,null,null,null,null,null,null,null,null,null,null,null,null,null,null,{"$f":"SUM(G130:P130)","v":0}]
[null,124,null,null,null,null,null,null,null,null,null,null,null,null,null,null,0]
[null,125,null,null,null,null,null,null,null,null,null,null,null,null,null,null,0]
[null,126,null,null,null,null,null,null,null,null,null,null,null,null,null,null,0]
[null,127,null,null,null,null,null,null,null,null,null,null,null,null,null,null,0]
[null,128,null,null,null,null,null,null,null,null,null,null,null,null,null,null,0]
[null,129,null,null,null,null,null,null,null,null,null,null,null,null,null,null,0]
[null,130,null,null,null,null,null,null,null,null,null,null,null,null,null,null,0]
[null,131,null,null,null,null,null,null,null,null,null,null,null,null,null,null,0]
[null,132,null,null,null,null,null,null,null,null,null,null,null,null,null,null,0]
[null,133,null,null,null,null,null,null,null,null,null,null,null,null,null,null,0]
[null,134,null,null,null,null,null,null,null,null,null,null,null,null,null,null,0]
[null,135,null,null,null,null,null,null,null,null,null,null,null,null,null,null,0]
[null,136,null,null,null,null,null,null,null,null,null,null,null,null,null,null,0]
[null,137,null,null,null,null,null,null,null,null,null,null,null,null,null,null,0]
[null,138,null,null,null,null,null,null,null,null,null,null,null,null,null,null,0]
[]
[null,null,null,null,null,null,null,null,null,null,null,null,null,{"$f":"IF(L147>=60,\"CLASIFICADO A 60 Km LIBRE y 80 Km NOVICIO\",IF(L147>=40,\"CLASIFICADO A 40 Km LIBRE y 60 Km NOVICIO\",\"\"))","v":""}]
[]
[]
[]
[]
[]
[]
[]
[]
[]
[]
[]
[]
[]
[]
[]
[]
[]
[null,null,null,null,null,null,null,null,null,null,null,null,null,{"$f":"IF(L165>=60,\"CLASIFICADO A 60 Km LIBRE y 80 Km NOVICIO\",IF(L165>=40,\"CLASIFICADO A 40 Km LIBRE y 60 Km NOVICIO\",\"\"))","v":""}]